bitfinex-derivatives/quotes_BTCF0:USTF0_20250207
["timestamp","ask_amount","ask_price","bid_price","bid_amount"]
[1738960180706,0.0799,96245.0,96244.0,0.002]
[1738960181304,0.0799,96245.0,96244.0,0.004]
[1738960181494,0.0799,96245.0,96244.0,0.002]
[1738960182096,0.0799,96245.0,96241.0,0.0001558]
[1738960182493,0.36132001,96246.0,96241.0,0.0001558]
[1738960182694,0.3608,96246.0,96241.0,0.0001558]
[1738960182895,0.001,96245.0,96244.0,0.006]
[1738960183093,0.002,96245.0,96244.0,0.00597141]
[1738960183292,0.001,96245.0,96244.0,0.003]
[1738960183487,0.002,96245.0,96244.0,0.003]
[1738960183894,0.001,96245.0,96241.0,0.0001558]
[1738960184096,0.001,96245.0,96244.0,0.006]
[1738960184704,0.002,96245.0,96244.0,0.009]
[1738960186305,0.002,96245.0,96215.0,0.2078356]
[1738960186306,0.002,96245.0,96215.0,0.10852]
[1738960186512,0.3608,96225.0,96215.0,0.10852]
[1738960187091,0.3608,96224.0,96215.0,0.10852]
[1738960187797,0.3608,96225.0,96215.0,0.10852]
[1738960188216,0.001,96224.0,96221.0,0.00655888]
[1738960188601,0.001,96224.0,96221.0,0.01964271]
[1738960190004,0.002,96224.0,96221.0,0.01964271]
[1738960197212,0.002,96224.0,96221.0,0.00655888]
[1738960197412,0.05977489,96223.0,96221.0,0.00655888]
[1738960198814,0.2078249,96221.0,96213.0,0.00015589]
[1738960199013,0.3608,96216.0,96206.0,0.00068]
[1738960199208,0.3608,96216.0,96206.0,0.01296322]
[1738960199410,0.3608,96216.0,96207.0,0.2078521]
[1738960199613,0.3608,96216.0,96200.0,0.12438941]
[1738960199816,0.3608,96216.0,96200.0,8.078e-05]
[1738960200118,0.3618,96216.0,96200.0,8.078e-05]
[1738960200313,0.15245414,96211.0,96200.0,0.01313708]
[1738960200504,0.15245414,96211.0,96199.0,0.2078709]
[1738960200706,0.15245414,96211.0,96200.0,0.49210863]
[1738960200912,0.15245414,96211.0,96204.0,0.2078583]
[1738960201107,0.15245414,96211.0,96202.0,0.3608]
[1738960201414,0.15245414,96211.0,96210.0,0.3608]
[1738960201617,0.15245414,96211.0,96210.0,0.2078474]
[1738960202218,0.0839579,96215.0,96214.0,0.2078388]
[1738960202422,0.0839579,96215.0,96214.0,0.6770388]
[1738960203509,0.0849579,96215.0,96214.0,0.6770388]
[1738960203915,0.27277157,96272.0,96214.0,0.7792]
[1738960204116,0.1569,96265.0,96248.0,0.2077654]
[1738960204414,0.0805,96265.0,96254.0,0.3608]
[1738960204616,0.27277157,96272.0,96254.0,0.3608]
[1738960204819,0.27277157,96272.0,96265.0,0.3608]
[1738960205012,0.24406806,96263.0,96256.0,0.12430863]
[1738960205208,0.24406806,96263.0,96262.0,0.3608]
[1738960206019,0.24406806,96263.0,96256.0,0.00015589]
[1738960206229,0.2826359,96262.0,96256.0,0.00015589]
[1738960206435,0.0749,96262.0,96256.0,0.01328875]
[1738960207430,0.0789,96262.0,96256.0,0.01328875]
[1738960207931,0.0829,96262.0,96256.0,0.01328875]
[1738960208341,0.2906369,96262.0,96256.0,0.01328875]
[1738960208828,0.2077453,96258.0,96256.0,0.00015589]
[1738960210026,0.3608,96257.0,96256.0,0.00015589]
[1738960210229,0.2077711,96246.0,96235.0,0.87936]
[1738960210537,0.2077913,96236.0,96235.0,0.87936]
[1738960210727,0.3608,96238.0,96235.0,0.87936]
[1738960211034,0.3608,96237.0,96235.0,0.87936]
[1738960211236,0.207774,96244.0,96230.0,0.12430863]
[1738960211440,0.207774,96244.0,96194.0,0.11144]
[1738960211441,0.7216,96231.0,96211.0,0.08]
[1738960211634,0.3608,96223.0,96220.0,0.12430863]
[1738960211834,0.3608,96231.0,96212.0,0.3608]
[1738960212228,0.3608,96231.0,96220.0,0.12430863]
[1738960212535,0.3608,96222.0,96220.0,0.12430863]
[1738960212735,0.3608,96222.0,96212.0,0.12430863]
[1738960213332,0.41568,96222.0,96212.0,0.12430863]
[1738960213731,0.49498,96222.0,96212.0,0.12430863]
[1738960213931,0.49498,96222.0,96197.0,0.12961065]
[1738960213932,0.3608,96213.0,96200.0,0.12430863]
[1738960214134,0.0742,96212.0,96200.0,0.12430863]
[1738960215335,0.3608,96205.0,96196.0,0.01324794]
[1738960215541,0.3608,96205.0,96190.0,0.48510863]
[1738960215842,0.3608,96205.0,96191.0,0.3608]
[1738960216035,0.3608,96205.0,96190.0,0.13772565]
[1738960216346,0.00614,96204.0,96200.0,0.009]
[1738960216734,0.00614,96204.0,96190.0,0.13772565]
[1738960216934,0.00614,96204.0,96190.0,0.14672565]
[1738960217138,0.3608,96194.0,96190.0,0.009]
[1738960217344,0.0809,96193.0,96180.0,0.13716994]
[1738960217548,0.10688,96193.0,96180.0,0.13716994]
[1738960219041,0.3608,96186.0,96180.0,0.12430863]
[1738960219233,0.0742,96185.0,96180.0,0.12430863]
[1738960219438,0.08251,96185.0,96180.0,0.12430863]
[1738960219742,0.08251,96185.0,96181.0,0.3608]
[1738960219938,0.08251,96185.0,96180.0,0.12430863]
[1738960220140,0.08251,96185.0,96180.0,0.12730863]
[1738960220445,0.08251,96185.0,96178.0,0.3608]
[1738960220639,0.02698,96193.0,96178.0,0.3608]
[1738960220949,0.00798,96193.0,96187.0,0.3608]
[1738960221133,0.00798,96193.0,96188.0,0.0779]
[1738960221337,1e-08,96193.0,96192.0,0.3608]
[1738960221738,0.00015589,96195.0,96192.0,0.7216]
[1738960221939,0.00613999,96204.0,96192.0,0.9294847]
[1738960222140,0.03721402,96205.0,96203.0,0.35249]
[1738960222350,0.02321402,96205.0,96203.0,0.35249]
[1738960222545,0.0766,96233.0,96209.0,0.2078496]
[1738960222743,0.0766,96233.0,96213.0,0.3475]
[1738960223049,0.3608,96225.0,96210.0,0.14608]
[1738960223249,0.37067015,96214.0,96210.0,0.14608]
[1738960223549,0.37067015,96214.0,96204.0,0.00015589]
[1738960223744,0.002,96205.0,96204.0,0.00015589]
[1738960223951,0.3628,96205.0,96204.0,0.00015589]
[1738960224750,0.3628,96205.0,96190.0,0.18660021]
[1738960224751,0.5706603,96205.0,96190.0,0.18660021]
[1738960224951,0.3608,96191.0,96180.0,0.18660021]
[1738960225450,0.40238,96191.0,96180.0,0.18660021]
[1738960226351,0.40338,96191.0,96177.0,0.3608]
[1738960226553,0.40338,96191.0,96180.0,0.003]
[1738960227752,0.40338,96191.0,96180.0,0.18960021]
[1738960228254,0.40338,96191.0,96180.0,0.003]
[1738960228449,0.40338,96191.0,96176.0,0.3753851]
[1738960228652,0.40338,96191.0,96177.0,0.003]
[1738960229848,0.40238,96191.0,96180.0,0.003]
[1738960230144,0.40338,96191.0,96180.0,0.003]
[1738960230356,0.40338,96191.0,96180.0,0.18960021]
[1738960231444,0.40238,96191.0,96180.0,0.18660021]
[1738960231751,0.40338,96191.0,96177.0,0.3638]
[1738960232254,0.2078914,96190.0,96180.0,0.003]
[1738960233239,0.2078914,96190.0,96176.0,0.1577451]
[1738960233559,0.2078914,96190.0,96177.0,0.003]
[1738960234054,0.5687166,96178.0,96177.0,0.003]
[1738960234254,0.5687166,96178.0,96176.0,0.00155964]
[1738960234443,0.0739,96177.0,96160.0,0.02187846]
[1738960234644,0.2079481,96164.0,96160.0,0.02187846]
[1738960234845,0.3608,96165.0,96160.0,0.02187846]
[1738960235141,0.2079643,96156.0,96144.0,0.01488145]
[1738960235341,0.3608,96165.0,96149.0,0.3608]
[1738960235751,0.3608,96165.0,96148.0,0.3608]
[1738960236352,0.001,96156.0,96148.0,0.3608]
[1738960236553,0.3608,96153.0,96144.0,0.38168145]
[1738960236851,0.3608,96153.0,96148.0,0.006]
[1738960236852,0.0416,96153.0,96148.0,0.006]
[1738960237646,0.0416,96153.0,96143.0,0.16324337]
[1738960238047,0.0416,96153.0,96143.0,0.17628537]
[1738960238348,0.01757,96153.0,96151.0,0.2079745]
[1738960238547,0.01757,96153.0,96152.0,0.0742]
[1738960238742,0.51267631,96163.0,96153.0,0.2079705]
[1738960239246,0.001,96156.0,96152.0,0.0742]
[1738960239453,0.001,96156.0,96154.0,0.2079667]
[1738960239648,0.15187631,96163.0,96161.0,0.2079525]
[1738960239850,0.15187631,96163.0,96162.0,0.3608]
[1738960240344,0.15287631,96163.0,96162.0,0.3608]
[1738960241049,0.001,96163.0,96155.0,0.0788]
[1738960241244,0.3618,96163.0,96153.0,0.003]
[1738960241446,0.3628,96163.0,96153.0,0.003]
[1738960241641,0.3628,96163.0,96154.0,0.13812]
[1738960241853,0.40439,96163.0,96154.0,0.13812]
[1738960242947,0.40339,96163.0,96154.0,0.13812]
[1738960243148,0.40439,96163.0,96154.0,0.13812]
[1738960243747,0.04359,96163.0,96154.0,0.13812]
[1738960243950,0.15187631,96162.0,96158.0,0.3608]
[1738960244253,0.15187631,96162.0,96161.0,0.2079533]
[1738960244957,0.15187631,96162.0,96158.0,0.3608]
[1738960245255,0.15287631,96162.0,96158.0,0.3608]
[1738960245451,0.15387631,96162.0,96158.0,0.3608]
[1738960245853,0.15387631,96162.0,96154.0,0.13812]
[1738960246053,0.002,96162.0,96154.0,0.13812]
[1738960246245,0.001,96162.0,96153.0,0.01679275]
[1738960246451,0.002,96162.0,96154.0,0.13648]
[1738960246758,0.3608,96155.0,96147.0,0.01664194]
[1738960246954,0.7216,96155.0,96142.0,0.13632]
[1738960247157,0.5687901,96144.0,96142.0,0.13668]
[1738960247557,0.0805,96143.0,96142.0,0.13668]
[1738960248064,0.0805,96143.0,96140.0,0.13668]
[1738960248365,0.2080153,96133.0,96120.0,0.00156055]
[1738960248662,0.3608,96132.0,96120.0,0.14615237]
[1738960248847,0.3608,96121.0,96120.0,0.14615237]
[1738960249056,0.3608,96121.0,96120.0,0.02156055]
[1738960249557,0.00015605,96130.0,96120.0,0.02156055]
[1738960249750,0.00015605,96130.0,96120.0,0.27074419]
[1738960249950,0.00015605,96130.0,96121.0,0.1364]
[1738960250154,0.00015605,96130.0,96129.0,0.2080226]
[1738960250761,0.00015605,96130.0,96129.0,0.3445426]
[1738960251548,0.05612605,96130.0,96129.0,0.36097637]
[1738960251752,0.05712605,96130.0,96129.0,0.36097637]
[1738960252361,0.05712605,96130.0,96129.0,0.72177637]
[1738960252556,0.06544605,96130.0,96129.0,0.72177637]
[1738960253956,0.06544605,96130.0,96129.0,0.36097637]
[1738960254162,0.06544605,96130.0,96129.0,0.72177637]
[1738960254359,0.06444605,96130.0,96129.0,0.72177637]
[1738960254558,0.06544605,96130.0,96129.0,0.72177637]
[1738960256265,0.06544605,96130.0,96129.0,0.01643377]
[1738960256466,0.06544605,96130.0,96127.0,0.13412]
[1738960256664,0.1505,96129.0,96127.0,0.13412]
[1738960257260,0.1505,96129.0,96120.0,0.10156055]
[1738960257564,0.1505,96129.0,96120.0,0.02]
[1738960257958,0.1505,96129.0,96121.0,0.2080399]
[1738960258154,0.1505,96129.0,96121.0,0.2280399]
[1738960258370,0.24157931,96128.0,96121.0,0.2280399]
[1738960258964,0.24157931,96128.0,96126.0,0.2080287]
[1738960259172,0.24157931,96128.0,96126.0,0.2280287]
[1738960260364,0.05893092,96128.0,96127.0,0.3608]
[1738960260567,0.18264839,96131.0,96130.0,0.2080204]
[1738960260764,0.11847839,96131.0,96130.0,0.30732653]
[1738960260972,0.3608,96172.0,96130.0,0.23166613]
[1738960261171,0.2328,96170.0,96162.0,0.20795]
[1738960261476,0.16865226,96164.0,96163.0,0.13236]
[1738960261979,0.16865226,96164.0,96163.0,0.17236]
[1738960262169,0.17565226,96164.0,96154.0,0.12474787]
[1738960262382,0.3608,96161.0,96155.0,0.13208]
[1738960262873,0.3608,96161.0,96154.0,0.00015605]
[1738960263068,0.3608,96161.0,96155.0,0.13192]
[1738960263268,0.2079663,96155.0,96154.0,0.00015605]
[1738960263470,0.2079663,96155.0,96122.0,0.76892]
[1738960263471,0.207997,96141.0,96122.0,0.76892]
[1738960263677,0.4346,96140.0,96130.0,0.18689684]
[1738960264765,0.3608,96131.0,96130.0,0.18689684]
[1738960264973,0.3608,96131.0,96122.0,0.76964]
[1738960265166,0.3608,96123.0,96116.0,0.1324]
[1738960265372,0.3608,96123.0,96116.0,0.1524]
[1738960265373,0.0758,96122.0,96116.0,0.1524]
[1738960266376,0.0758,96122.0,96116.0,0.1534]
[1738960267869,0.0768,96122.0,96116.0,0.1524]
[1738960268075,0.0768,96122.0,96116.0,0.02]
[1738960268465,0.0768,96122.0,96116.0,0.12]
[1738960268661,0.001,96122.0,96116.0,0.12]
[1738960269469,0.001,96122.0,96117.0,0.13272]
[1738960269781,0.001,96122.0,96118.0,0.2080464]
[1738960269967,0.001,96122.0,96118.0,0.2380464]
[1738960270276,0.001,96122.0,96120.0,0.2080421]
[1738960270478,0.001,96122.0,96120.0,0.2480421]
[1738960270676,0.01015,96123.0,96120.0,0.2480421]
[1738960270976,0.00156078,96151.0,96121.0,0.04935229]
[1738960271166,0.00208079,96151.0,96141.0,0.2079966]
[1738960271363,0.5168,96164.0,96142.0,0.0804]
[1738960271568,0.5168,96164.0,96154.0,0.18689684]
[1738960271779,0.5168,96164.0,96155.0,0.13264]
[1738960272170,0.55839,96164.0,96155.0,0.13264]
[1738960272567,0.56739,96164.0,96155.0,0.13264]
[1738960272775,0.3608,96156.0,96155.0,0.13264]
[1738960274265,0.3698,96156.0,96155.0,0.13264]
[1738960274982,0.017,96156.0,96155.0,0.13264]
[1738960276373,0.012,96156.0,96155.0,0.13264]
[1738960276581,0.012,96156.0,96155.0,0.14882717]
[1738960277082,0.009,96156.0,96155.0,0.14882717]
[1738960277267,0.001,96156.0,96155.0,0.14882717]
[1738960277665,0.55839,96164.0,96155.0,0.66962717]
[1738960277666,0.40239,96164.0,96155.0,0.66962717]
[1738960277878,0.00015605,96169.0,96163.0,0.3608]
[1738960278082,0.00015605,96169.0,96163.0,0.5787479]
[1738960278582,0.00015605,96169.0,96163.0,0.3708]
[1738960278882,0.00015605,96169.0,96163.0,0.3608]
[1738960279288,0.00015605,96169.0,96156.0,0.13184]
[1738960279289,0.00015605,96169.0,96156.0,0.339804]
[1738960279781,0.00015605,96169.0,96156.0,0.349804]
[1738960280280,0.00215605,96169.0,96156.0,0.01]
[1738960280476,0.3608,96161.0,96157.0,0.13224]
[1738960280783,0.00015605,96169.0,96157.0,0.13224]
[1738960280978,0.00015605,96169.0,96160.0,0.3608]
[1738960281172,0.00015605,96169.0,96163.0,0.207947]
[1738960281374,0.00115605,96169.0,96163.0,0.207947]
[1738960281681,0.00115605,96169.0,96164.0,0.1336]
[1738960281979,0.00115605,96169.0,96164.0,0.1736]
[1738960282183,0.00015605,96169.0,96168.0,0.3608]
[1738960282480,0.00315605,96169.0,96168.0,0.05]
[1738960282870,0.36395605,96169.0,96168.0,0.05]
[1738960283071,0.36595605,96169.0,96164.0,0.1336]
[1738960283579,0.36395605,96169.0,96164.0,0.1336]
[1738960283972,0.36495605,96169.0,96164.0,0.1336]
[1738960284173,0.36195605,96169.0,96164.0,0.1336]
[1738960284373,0.3608,96165.0,96140.0,0.76948]
[1738960284588,0.3608,96156.0,96152.0,0.13372]
[1738960284877,0.2333,96155.0,96152.0,0.13372]
[1738960286084,0.00315605,96169.0,96167.0,0.2079392]
[1738960286279,0.00015605,96169.0,96167.0,0.2179392]
[1738960286474,0.00215605,96169.0,96167.0,0.2179392]
[1738960286878,0.00015605,96169.0,96167.0,0.2179392]
[1738960287989,0.00115605,96169.0,96167.0,0.2179392]
[1738960289074,0.00115605,96169.0,96167.0,0.01]
[1738960289271,0.00115605,96169.0,96167.0,0.15024803]
[1738960289483,0.00115605,96169.0,96167.0,0.13452]
[1738960289484,0.3608,96168.0,96167.0,0.13452]
[1738960289780,0.5687382,96168.0,96161.0,0.13348]
[1738960290284,0.3608,96162.0,96161.0,0.13348]
[1738960290778,0.3608,96162.0,96150.0,0.00015605]
[1738960291081,0.3608,96151.0,96150.0,0.00015605]
[1738960292483,0.568775,96151.0,96150.0,0.00015605]
[1738960292985,0.2079885,96145.0,96140.0,0.76884]
[1738960293183,0.3608,96141.0,96140.0,0.76884]
[1738960293385,0.3608,96141.0,96133.0,0.13396042]
[1738960293578,0.3608,96139.0,96133.0,0.13396042]
[1738960293777,0.3608,96139.0,96133.0,0.00156042]
[1738960293978,0.0741,96138.0,96133.0,0.00156042]
[1738960295782,0.08567,96138.0,96116.0,0.23216]
[1738960295982,0.3608,96117.0,96116.0,0.25216]
[1738960296386,0.077,96137.0,96116.0,0.25216]
[1738960296387,0.3608,96127.0,96122.0,0.2080369]
[1738960296584,0.00015605,96126.0,96122.0,0.2080369]
[1738960296985,0.00015605,96126.0,96117.0,0.18689684]
[1738960297186,0.00015605,96126.0,96117.0,0.20689684]
[1738960298479,0.00015605,96126.0,96124.0,0.2080327]
[1738960298880,0.00015605,96126.0,96124.0,0.2180327]
[1738960299085,0.00015605,96126.0,96125.0,0.0784]
[1738960299285,0.01157,96138.0,96125.0,0.1715]
[1738960299485,0.01157,96138.0,96134.0,0.2080105]
[1738960299687,0.01157,96138.0,96135.0,0.208008]
[1738960299885,0.01157,96138.0,96135.0,0.218008]
[1738960300195,0.001,96126.0,96120.0,0.18689684]
[1738960300486,0.001,96126.0,96120.0,0.44094636]
[1738960301192,0.001,96126.0,96123.0,0.2080337]
[1738960301384,0.001,96126.0,96123.0,0.2480337]
[1738960301693,0.002,96126.0,96123.0,0.2480337]
[1738960302384,0.001,96126.0,96123.0,0.2480337]
[1738960303189,0.002,96126.0,96123.0,0.2500337]
[1738960303493,0.002,96126.0,96124.0,0.13056]
[1738960303692,0.002,96126.0,96124.0,0.15056]
[1738960304896,0.002,96126.0,96124.0,0.15256]
[1738960305096,0.01401,96126.0,96124.0,0.15256]
[1738960305296,0.01401,96126.0,96124.0,0.3605921]
[1738960306002,0.1536,96150.0,96125.0,0.4363]
[1738960306298,0.1536,96150.0,96145.0,0.2079868]
[1738960306595,0.1536,96150.0,96138.0,0.568801]
[1738960306794,0.1536,96150.0,96141.0,0.2079955]
[1738960306999,0.3608,96143.0,96137.0,0.18689684]
[1738960307495,0.3608,96143.0,96134.0,0.00015605]
[1738960307699,0.3608,96143.0,96134.0,0.36095605]
[1738960308096,0.3608,96143.0,96134.0,0.37095605]
[1738960308299,0.3608,96143.0,96141.0,0.2079956]
[1738960308505,0.0035605,96147.0,96141.0,0.2179956]
[1738960308998,0.0025605,96147.0,96141.0,0.011]
[1738960309303,0.001,96143.0,96141.0,0.001]
[1738960310113,0.3608,96143.0,96141.0,0.004]
[1738960310596,0.3608,96143.0,96141.0,0.003]
[1738960310902,0.3618,96143.0,96141.0,0.005]
[1738960311305,0.15248927,96176.0,96142.0,0.3608]
[1738960311497,0.08155927,96176.0,96165.0,0.3608]
[1738960311692,0.18345138,96183.0,96175.0,0.3608]
[1738960311893,0.19499206,96197.0,96177.0,0.2079183]
[1738960312096,0.19499206,96197.0,96196.0,0.2078777]
[1738960312298,0.19499206,96197.0,96196.0,0.3367177]
[1738960312497,0.19499206,96197.0,96196.0,0.12884]
[1738960312807,0.19499206,96197.0,96196.0,0.48964]
[1738960313105,0.20199206,96197.0,96196.0,0.12884]
[1738960313308,0.20599206,96197.0,96196.0,0.1492018]
[1738960313496,0.55979206,96197.0,96196.0,0.12884]
[1738960313700,0.55979206,96197.0,96187.0,0.00015597]
[1738960313701,0.56679206,96197.0,96187.0,0.00015597]
[1738960314005,0.3608,96188.0,96187.0,0.00015597]
[1738960314202,0.3608,96188.0,96166.0,0.02044787]
[1738960314504,0.3608,96177.0,96152.0,0.12912]
[1738960314698,0.3608,96162.0,96160.0,0.18688612]
[1738960314906,0.3608,96162.0,96152.0,0.33687615]
[1738960315403,0.3608,96154.0,96152.0,0.33687615]
[1738960315707,0.0795,96153.0,96152.0,0.12912]
[1738960316208,0.0795,96153.0,96152.0,0.13612]
[1738960316602,0.0795,96153.0,96152.0,0.016]
[1738960317403,0.0815,96153.0,96152.0,0.007]
[1738960318103,0.0815,96153.0,96150.0,0.76972]
[1738960318300,0.0845,96153.0,96150.0,0.76888]
[1738960318807,0.0815,96153.0,96150.0,0.76888]
[1738960319109,0.0935,96153.0,96152.0,0.002]
[1738960319500,0.0855,96153.0,96152.0,0.001]
[1738960319700,0.0925,96153.0,96152.0,0.001]
[1738960320398,0.0905,96153.0,96150.0,0.77068]
[1738960320599,0.0905,96153.0,96150.0,0.76988]
[1738960321209,0.0835,96153.0,96150.0,0.76888]
[1738960321412,0.0895,96153.0,96150.0,0.76888]
[1738960321613,0.01,96153.0,96150.0,0.76888]
[1738960321819,0.004,96153.0,96150.0,0.76888]
[1738960322115,0.01,96153.0,96150.0,0.76888]
[1738960322615,0.009,96153.0,96150.0,0.76988]
[1738960322914,0.008,96153.0,96150.0,0.76988]
[1738960323110,0.003,96153.0,96150.0,0.76888]
[1738960323307,0.008,96153.0,96150.0,0.76988]
[1738960323908,0.008,96153.0,96150.0,0.001]
[1738960324110,0.008,96153.0,96150.0,0.011]
[1738960324306,0.008,96153.0,96152.0,0.3608]
[1738960324509,0.3608,96185.0,96152.0,0.4008]
[1738960324803,0.0754,96201.0,96180.0,0.2079122]
[1738960325008,0.0754,96201.0,96191.0,0.18688612]
[1738960325009,0.1556,96201.0,96191.0,0.18688612]
[1738960325311,0.3608,96212.0,96197.0,0.3608]
[1738960325613,0.3618,96202.0,96191.0,0.18688612]
[1738960325923,0.3608,96192.0,96190.0,0.18688612]
[1738960326108,0.3608,96192.0,96191.0,0.001]
[1738960326813,0.2079043,96184.0,96181.0,0.1278]
[1738960327018,0.3608,96182.0,96181.0,0.1278]
[1738960328414,0.2079234,96175.0,96173.0,0.7688]
[1738960328620,0.3608,96174.0,96172.0,0.00015597]
[1738960329719,0.0795,96173.0,96172.0,0.00015597]
[1738960329914,0.1566,96173.0,96172.0,0.00015597]
[1738960330114,0.1566,96173.0,96172.0,0.00115597]
[1738960330420,0.1566,96173.0,96172.0,0.00215597]
[1738960331216,0.1566,96173.0,96145.0,0.13011983]
[1738960331521,0.3608,96146.0,96145.0,0.00155983]
[1738960332719,0.3608,96146.0,96145.0,0.00255983]
[1738960332909,0.3618,96146.0,96145.0,0.00255983]
[1738960333112,0.001,96146.0,96145.0,0.00255983]
[1738960333413,0.00015597,96155.0,96145.0,0.00355983]
[1738960333615,0.001,96146.0,96145.0,0.00355983]
[1738960334118,0.001,96146.0,96145.0,0.02355983]
[1738960334312,0.00015597,96155.0,96145.0,0.00355983]
[1738960334515,0.00015597,96155.0,96150.0,0.2079752]
[1738960334726,0.00015597,96155.0,96150.0,0.2179752]
[1738960335721,0.00715597,96155.0,96150.0,0.2179752]
[1738960336325,0.00615597,96155.0,96150.0,0.2179752]
[1738960336626,0.00515597,96155.0,96150.0,0.01]
[1738960336922,0.00415597,96155.0,96150.0,0.01]
[1738960338120,0.3608,96154.0,96150.0,0.02005529]
[1738960338318,0.3608,96154.0,96150.0,0.001]
[1738960338621,0.3608,96154.0,96150.0,0.011]
[1738960339128,0.3608,96154.0,96150.0,0.013]
[1738960339326,0.00215597,96155.0,96152.0,0.2079715]
[1738960339618,0.00215597,96155.0,96150.0,0.003]
[1738960339823,0.001,96154.0,96150.0,0.03]
[1738960340013,0.004,96154.0,96150.0,0.01]
[1738960340619,0.004,96154.0,96148.0,0.3608]
[1738960340923,0.004,96154.0,96148.0,0.3708]
[1738960341317,0.00015597,96155.0,96152.0,0.001]
[1738960341513,0.00315597,96155.0,96152.0,0.001]
[1738960341717,0.00315597,96155.0,96153.0,0.3353307]
[1738960341914,0.3608,96192.0,96154.0,0.12906941]
[1738960342118,0.0823,96209.0,96191.0,0.3608]
[1738960342326,0.3608,96218.0,96205.0,0.207858]
[1738960342518,0.3608,96218.0,96208.0,0.18688612]
[1738960342716,0.3608,96218.0,96205.0,0.207858]
[1738960343126,0.3608,96218.0,96202.0,0.00015597]
[1738960343322,0.3608,96206.0,96202.0,0.00015597]
[1738960344520,0.3608,96203.0,96202.0,0.00015597]
[1738960345126,0.2078842,96193.0,96192.0,0.12712]
[1738960345328,0.0519757,96185.0,96140.0,0.18688612]
[1738960345632,0.3608,96148.0,96140.0,0.02017747]
[1738960346330,0.00015597,96156.0,96142.0,0.2079935]
[1738960346523,0.3608,96147.0,96140.0,0.02017747]
[1738960346830,0.3608,96147.0,96137.0,0.00015597]
[1738960347232,0.3608,96147.0,96145.0,0.00165983]
[1738960347631,0.3608,96147.0,96145.0,0.00465983]
[1738960348137,0.3608,96147.0,96145.0,0.00165983]
[1738960348433,0.5727836,96147.0,96145.0,0.00165983]
[1738960348832,0.5737836,96147.0,96145.0,0.0001]
[1738960349225,0.3658,96147.0,96145.0,0.0001]
[1738960349826,0.005,96147.0,96146.0,0.2079858]
[1738960350237,0.005,96147.0,96145.0,0.0001]
[1738960351032,0.004,96147.0,96145.0,0.0001]
[1738960351233,0.2139854,96147.0,96145.0,0.0001]
[1738960351537,0.2079977,96141.0,96137.0,0.00015597]
[1738960351838,0.3608,96138.0,96137.0,0.00015597]
[1738960352938,0.3608,96138.0,96137.0,0.00115597]
[1738960354624,0.3648,96138.0,96137.0,0.00115597]
[1738960355027,0.3618,96138.0,96137.0,0.00115597]
[1738960355230,0.3638,96138.0,96137.0,0.00115597]
[1738960355428,0.3648,96138.0,96137.0,0.00115597]
[1738960357237,0.3638,96138.0,96137.0,0.20916127]
[1738960357433,0.004,96138.0,96137.0,0.20916127]
[1738960358230,0.004,96138.0,96137.0,0.21916127]
[1738960358425,0.004,96138.0,96137.0,0.20916127]
[1738960358630,0.003,96138.0,96137.0,0.20916127]
[1738960358831,0.004,96138.0,96137.0,0.20916127]
[1738960359031,0.003,96138.0,96137.0,0.22953838]
[1738960360535,0.3608,96144.0,96137.0,0.02553308]
[1738960360735,0.0827,96143.0,96137.0,0.02653308]
[1738960361238,0.0827,96143.0,96137.0,0.02353308]
[1738960361438,0.001,96138.0,96137.0,0.02753308]
[1738960361835,0.001,96138.0,96137.0,0.02553308]
[1738960362035,0.0877,96143.0,96137.0,0.02153308]
[1738960362349,0.0907,96143.0,96137.0,0.02153308]
[1738960362527,0.002,96138.0,96137.0,0.02153308]
[1738960363739,0.002,96138.0,96137.0,0.06153308]
[1738960364045,0.004,96143.0,96137.0,0.06153308]
[1738960364339,0.00156057,96158.0,96142.0,0.3608]
[1738960364640,0.00156057,96158.0,96150.0,0.3608]
[1738960364941,0.00156057,96158.0,96155.0,0.2079651]
[1738960365140,0.00156057,96158.0,96155.0,0.02]
[1738960365341,0.0794,96175.0,96155.0,0.02]
[1738960365544,0.3608,96156.0,96155.0,0.02]
[1738960365742,0.004,96156.0,96154.0,0.12772]
[1738960366134,0.004,96156.0,96154.0,0.3756876]
[1738960366341,0.004,96156.0,96154.0,0.3356876]
[1738960366544,0.004,96156.0,96155.0,0.0777]
[1738960367045,0.004,96156.0,96154.0,0.12772]
[1738960367244,0.3608,96169.0,96154.0,0.12772]
[1738960367544,0.006,96158.0,96154.0,0.12772]
[1738960367942,0.3608,96160.0,96154.0,0.12772]
[1738960368142,0.3608,96160.0,96155.0,0.001]
[1738960368534,0.3608,96160.0,96154.0,0.13072]
[1738960369256,0.3608,96160.0,96154.0,0.12872]
[1738960369554,0.2079663,96156.0,96154.0,0.001]
[1738960369845,0.2079826,96148.0,96129.0,0.1272]
[1738960370042,0.5687826,96148.0,96129.0,0.1272]
[1738960370238,0.5687826,96148.0,96137.0,0.0175289]
[1738960370239,0.3608,96148.0,96137.0,0.0175289]
[1738960371244,0.3608,96140.0,96137.0,0.00115597]
[1738960371447,0.3608,96140.0,96137.0,0.00315597]
[1738960372149,0.5687995,96140.0,96137.0,0.00315597]
[1738960372342,0.2080025,96139.0,96137.0,0.00315597]
[1738960372943,0.0806,96138.0,96137.0,0.00315597]
[1738960373254,0.0806,96138.0,96137.0,0.00615597]
[1738960373740,0.0806,96138.0,96137.0,0.00315597]
[1738960373939,0.0806,96138.0,96137.0,0.00815597]
[1738960374436,0.0826,96138.0,96137.0,0.00315597]
[1738960374640,0.0826,96138.0,96137.0,0.00115597]
[1738960376445,0.0826,96138.0,96127.0,0.76884]
[1738960376648,0.3608,96128.0,96127.0,0.76884]
[1738960377751,0.3618,96128.0,96127.0,0.77184]
[1738960378754,0.3618,96128.0,96127.0,0.77384]
[1738960380350,0.001,96128.0,96127.0,0.77384]
[1738960380541,0.3608,96153.0,96127.0,1.13464]
[1738960380542,0.0782,96147.0,96127.0,1.13464]